bitfinex/quotes_SOLUSD_20250609
["timestamp","ask_amount","ask_price","bid_price","bid_amount"]
[1749443378088,29.52976676,151.48,151.44,8.03864994]
[1749443378410,24.60252235,151.48,151.45,8.03864994]
[1749443379315,29.53103826,151.48,151.44,8.03864994]
[1749443380215,24.60252235,151.48,151.44,8.03864994]
[1749443380398,29.53232211,151.48,151.44,8.03864994]
[1749443380597,24.60252235,151.48,151.44,8.03864994]
[1749443380814,29.53370187,151.48,151.44,8.03864994]
[1749443381714,24.60252235,151.48,151.44,8.03864994]
[1749443381914,24.60252235,151.48,151.44,14.64171032]
[1749443383416,29.5359264,151.48,151.46,8.03864994]
[1749443383721,29.5359264,151.48,151.45,8.03864994]
[1749443383722,24.60252235,151.48,151.45,8.03864994]
[1749443383893,24.60252235,151.48,151.46,8.03864994]
[1749443384621,24.60252235,151.48,151.46,14.64062066]
[1749443385292,8.03864994,151.51,151.46,14.64062066]
[1749443385490,4.93402574,151.5,151.47,8.03864994]
[1749443385691,26.6882988,151.52,151.47,8.03864994]
[1749443385912,4.93402574,151.51,151.47,8.03864994]
[1749443386117,18.64964886,151.52,151.48,8.03864994]
[1749443386416,4.93297309,151.51,151.48,8.03864994]
[1749443386603,18.64964886,151.52,151.48,8.03864994]
[1749443386807,4.93436434,151.51,151.48,8.03864994]
[1749443387118,34.03864994,151.53,151.48,14.64004028]
[1749443387287,4.93426581,151.52,151.48,14.64004028]
[1749443387490,4.93426581,151.51,151.48,14.64004028]
[1749443387711,34.03864994,151.53,151.48,14.64004028]
[1749443388016,4.93384334,151.52,151.48,14.64004028]
[1749443388313,4.93384334,151.51,151.48,14.64004028]
[1749443388621,34.03864994,151.53,151.49,8.03864994]
[1749443388805,4.93289788,151.52,151.49,8.03864994]
[1749443388991,4.93289788,151.51,151.49,8.03864994]
[1749443389308,4.93289788,151.52,151.49,8.03864994]
[1749443389493,26.6882988,151.54,151.5,8.03864994]
[1749443389693,4.93157116,151.53,151.5,8.03864994]
[1749443389893,4.93157116,151.52,151.5,8.03864994]
[1749443390095,4.93157116,151.53,151.5,8.03864994]
[1749443390307,26.6882988,151.54,151.5,8.03864994]
[1749443390507,4.9301768,151.53,151.5,8.03864994]
[1749443390706,26.6882988,151.54,151.5,8.03864994]
[1749443390910,4.93020155,151.53,151.5,8.03864994]
[1749443391121,18.64964886,151.54,151.5,14.63925399]
[1749443391416,4.928564,151.53,151.5,14.63925399]
[1749443392306,4.928564,151.54,151.51,8.03864994]
[1749443393111,26.6882988,151.55,151.51,8.03864994]
[1749443393302,31.61356659,151.55,151.51,8.03864994]
[1749443395119,4.92526779,151.54,151.51,8.03864994]
[1749443395424,38.2120854,151.55,151.51,8.03864994]
[1749443396102,38.2120854,151.55,151.5,14.63925399]
[1749443397113,38.20857691,151.55,151.5,14.63925399]
[1749443397927,38.20857691,151.55,151.51,8.03864994]
[1749443403524,8.03864994,151.54,151.5,8.03864994]
[1749443404013,38.20857691,151.55,151.51,8.03864994]
[1749443404331,33.28681761,151.55,151.51,8.03864994]
[1749443404628,25.24816767,151.55,151.52,8.03864994]
[1749443405404,25.24816767,151.55,151.51,8.03864994]
[1749443405602,154.13864994,151.56,151.52,8.03864994]
[1749443405815,154.13864994,151.56,151.51,6.60009398]
[1749443405816,146.1,151.56,151.53,8.03864994]
[1749443406208,146.1,151.56,151.54,8.03864994]
[1749443408028,146.1,151.56,151.53,8.03864994]
[1749443409528,26.0,151.48,151.35,33.03600925]
[1749443409710,26.0,151.48,151.33,6.60807506]
[1749443409711,8.03864994,151.4,151.33,11.98156491]
[1749443409911,248.13532898,151.47,151.33,11.98156491]
[1749443409912,6.15219913,151.55,151.41,6.0479]
[1749443410108,4.91530907,151.56,151.48,1.5632]
[1749443410307,8.03864994,151.54,151.48,1.5632]
[1749443410507,34.03864994,151.54,151.49,8.03864994]
[1749443410816,34.03864994,151.54,151.47,8.18081151]
[1749443410817,8.03864994,151.52,151.47,8.18081151]
[1749443411018,12.95395901,151.52,151.47,8.18081151]
[1749443411213,17.46656166,151.53,151.47,0.14216157]
[1749443411424,4.91530907,151.52,151.48,12.55125259]
[1749443411833,17.46656166,151.53,151.48,12.55125259]
[1749443412236,4.91530907,151.52,151.48,12.55125259]
[1749443412534,4.91530907,151.52,151.47,6.74411663]
[1749443412710,17.46656166,151.53,151.48,12.55125259]
[1749443413429,4.91530907,151.52,151.48,12.55125259]
[1749443413629,17.46656166,151.52,151.48,12.55125259]
[1749443413936,12.55125259,151.52,151.48,12.55125259]
[1749443414112,17.46656166,151.52,151.48,12.55125259]
[1749443414440,12.55125259,151.52,151.48,12.55125259]
[1749443414641,17.46656166,151.52,151.48,12.55125259]
[1749443415324,24.06639524,151.52,151.47,12.69341416]
[1749443415628,19.15108617,151.52,151.48,0.14216157]
[1749443415942,24.06639524,151.52,151.48,0.14216157]
[1749443416247,12.55125259,151.49,151.44,11.52]
[1749443416433,12.55125259,151.49,151.45,12.55125259]
[1749443416633,12.55125259,151.5,151.46,12.55125259]
[1749443416839,17.46656166,151.5,151.46,12.55125259]
[1749443417024,12.55125259,151.5,151.46,12.55125259]
[1749443417226,4.91530907,151.49,151.46,12.55125259]
[1749443417753,11.51670574,151.49,151.46,12.55125259]
[1749443419223,6.60139667,151.49,151.45,12.69341416]
[1749443419424,19.15264926,151.49,151.45,12.69341416]
[1749443419634,4.92554186,151.48,151.45,12.69341416]
[1749443420047,4.92554186,151.48,151.45,0.14216157]
[1749443420350,17.47679445,151.48,151.44,12.55125259]
[1749443420543,12.55125259,151.48,151.43,14.18825259]
[1749443420853,17.4775651,151.48,151.43,14.18825259]
[1749443421221,6.60196738,151.47,151.44,12.55125259]
[1749443422257,6.60153684,151.48,151.46,12.55125259]
[1749443422431,6.60153684,151.48,151.47,12.55125259]
[1749443422946,6.60153684,151.48,151.46,12.55125259]
[1749443423354,6.60109578,151.49,151.46,12.55125259]
[1749443423853,11.5277503,151.5,151.47,12.55125259]
[1749443424055,6.60080081,151.5,151.47,12.55125259]
[1749443424247,11.52787438,151.5,151.47,12.55125259]
[1749443424447,6.60080081,151.5,151.47,12.55125259]
[1749443424852,6.60080081,151.5,151.44,32.74526494]
[1749443425048,6.60080081,151.5,151.47,12.55125259]
[1749443428747,6.60080081,151.5,151.46,12.55125259]
[1749443428748,11.52976504,151.49,151.46,12.55125259]
[1749443428943,6.60111764,151.49,151.46,12.55125259]
[1749443430367,6.60066006,151.5,151.47,12.55125259]
[1749443430564,4.92856685,151.49,151.47,12.55125259]
[1749443430764,4.92858707,151.49,151.47,12.55125259]
[1749443431075,4.92858654,151.49,151.47,12.55125259]
[1749443431254,6.60066006,151.5,151.47,12.55125259]
[1749443432677,4.92831599,151.49,151.47,12.55125259]
[1749443432874,6.60066006,151.5,151.44,32.74526494]
[1749443433063,4.92838238,151.49,151.47,12.55125259]
[1749443433266,6.60066006,151.5,151.47,8.03497979]
[1749443433475,4.92809097,151.49,151.47,8.03497979]
[1749443433678,6.60066006,151.5,151.47,8.03497979]
[1749443433880,11.52930462,151.49,151.47,8.03497979]
[1749443434079,6.60109824,151.49,151.47,8.03497979]
[1749443434974,6.60066006,151.5,151.47,8.03497979]
[1749443435176,4.92799503,151.49,151.47,8.03497979]
[1749443435367,6.60066006,151.5,151.47,8.03497979]
[1749443435564,4.92780066,151.49,151.47,8.03497979]
[1749443435768,6.60066006,151.5,151.47,8.03497979]
[1749443436067,11.52920908,151.49,151.47,8.03497979]
[1749443436274,6.6013022,151.49,151.46,8.03497979]
[1749443438267,12.96324782,151.48,151.44,8.17714136]
[1749443438584,12.96363477,151.47,151.43,8.03497979]
[1749443438882,12.96363477,151.47,151.42,0.14216157]
[1749443438883,4.92865498,151.46,151.42,8.17714136]
[1749443439085,8.03497979,151.47,151.42,8.17714136]
[1749443439385,23.10404165,151.49,151.42,8.17714136]
[1749443439386,12.9637438,151.46,151.42,0.14216157]
[1749443439554,11.53181309,151.45,151.42,0.14216157]
[1749443439758,6.60304908,151.45,151.42,0.14216157]
[1749443439957,14.63802887,151.45,151.4,11.52]
[1749443440158,8.03497979,151.43,151.39,9.59637979]
[1749443440718,8.03497979,151.43,151.39,8.03497979]
[1749443440870,12.96183494,151.43,151.39,8.03497979]
[1749443441178,8.03497979,151.43,151.39,8.03497979]
[1749443441368,12.56674828,151.43,151.39,12.56674828]
[1749443441570,24.09753106,151.43,151.39,12.56674828]
[1749443441866,19.17070936,151.43,151.39,12.56674828]
[1749443442079,24.09753106,151.43,151.39,12.56674828]
[1749443442388,19.17070936,151.43,151.39,12.56674828]
[1749443442569,24.09753106,151.43,151.39,12.56674828]
[1749443442772,19.17070936,151.43,151.39,12.56674828]
[1749443443271,24.09753106,151.43,151.39,12.56674828]
[1749443443459,19.17070936,151.43,151.39,12.56674828]
[1749443444379,11.53026629,151.44,151.41,12.56674828]
[1749443445386,4.9268217,151.44,151.41,12.56674828]
[1749443445575,6.60301055,151.45,151.43,12.56674828]
[1749443445763,19.16975883,151.45,151.41,12.56674828]
[1749443447587,19.16975883,151.45,151.4,12.70890985]
[1749443448097,12.56674828,151.44,151.4,12.56674828]
[1749443448892,12.56674828,151.43,151.39,12.56674828]
[1749443449389,12.56674828,151.42,151.38,12.70890985]
[1749443450065,19.1711041,151.42,151.38,12.70890985]
[1749443450578,6.60435582,151.42,151.39,12.56674828]
[1749443453873,17.49356998,151.43,151.39,12.56674828]
[1749443454074,6.60240327,151.46,151.42,12.56674828]
[1749443454281,4.92463539,151.45,151.42,12.56674828]
[1749443454587,4.92460932,151.45,151.42,12.56674828]
[1749443455712,4.92460932,151.45,151.41,19.17129536]
[1749443457693,4.92460932,151.45,151.42,12.56674828]
[1749443458282,4.92460932,151.45,151.41,12.56674828]
[1749443460502,4.92460932,151.45,151.42,12.56674828]
[1749443460887,19.16915155,151.46,151.42,12.56674828]
[1749443461183,4.92569098,151.45,151.42,12.56674828]
[1749443461381,19.16915155,151.46,151.42,12.56674828]
[1749443461585,4.92583076,151.45,151.42,12.56674828]
[1749443461788,19.16915155,151.46,151.42,12.56674828]
[1749443461984,4.92575844,151.45,151.42,12.56674828]
[1749443462197,19.16915155,151.46,151.42,12.56674828]
[1749443462396,4.92591457,151.45,151.42,12.56674828]
[1749443462606,19.16915155,151.46,151.42,12.56674828]
[1749443462775,4.9258228,151.45,151.42,12.56674828]
[1749443462978,19.16915155,151.46,151.42,12.56674828]
[1749443463178,4.9258228,151.45,151.42,12.56674828]
[1749443463399,19.16915155,151.46,151.42,12.56674828]
[1749443463586,4.92599552,151.45,151.42,12.56674828]
[1749443463784,19.16915155,151.46,151.42,12.56674828]
[1749443463996,4.92592438,151.45,151.42,12.56674828]
[1749443464311,19.16915155,151.46,151.42,12.56674828]
[1749443464489,4.92610312,151.45,151.42,12.56674828]
[1749443464690,19.16915155,151.46,151.42,12.56674828]
[1749443464892,4.92589992,151.45,151.42,12.56674828]
[1749443465091,19.16915155,151.46,151.42,12.56674828]
[1749443465404,4.92609818,151.45,151.41,8.18261478]
[1749443465709,14.64285648,151.46,151.41,8.18261478]
[1749443466006,4.92590753,151.45,151.41,8.18261478]
[1749443466199,14.64285648,151.46,151.41,8.18261478]
[1749443466399,4.92611694,151.45,151.41,8.18261478]
[1749443466600,14.64285648,151.46,151.41,14.78716962]
[1749443466799,4.92611636,151.45,151.41,14.78716962]
[1749443467102,14.64285648,151.46,151.41,14.78716962]
[1749443467298,4.92615836,151.45,151.41,14.78716962]
[1749443467500,14.64285648,151.46,151.41,14.78716962]
[1749443467698,4.9261657,151.45,151.41,14.78716962]
[1749443467901,4.92608386,151.45,151.42,8.04045321]
[1749443469081,14.64285648,151.46,151.42,8.04045321]
[1749443469286,4.92686665,151.45,151.42,8.04045321]
[1749443469486,14.64285648,151.46,151.42,8.04045321]
[1749443469686,4.92686665,151.45,151.42,8.04045321]
[1749443469903,14.64285648,151.46,151.42,8.04045321]
[1749443470109,4.92730245,151.45,151.42,8.04045321]
[1749443470307,14.64285648,151.46,151.42,8.04045321]
[1749443470511,4.92757792,151.45,151.42,8.04045321]
[1749443470723,14.64285648,151.46,151.42,8.04045321]
[1749443470902,4.92815573,151.45,151.42,8.04045321]
[1749443471210,14.64285648,151.46,151.42,8.04045321]
[1749443471408,4.92843296,151.45,151.42,8.04045321]
[1749443471588,14.64285648,151.46,151.42,8.04045321]
[1749443471790,4.92845719,151.45,151.42,8.04045321]
[1749443471990,14.64285648,151.46,151.42,8.04045321]
[1749443472311,4.92915357,151.45,151.42,8.04045321]
[1749443472503,14.64285648,151.46,151.42,8.04045321]
[1749443472708,4.92942239,151.45,151.42,8.04045321]
[1749443472898,4.92942239,151.44,151.42,8.04045321]
[1749443473090,4.92942239,151.45,151.42,8.04045321]
[1749443473291,4.92942239,151.44,151.42,8.04045321]
[1749443473494,4.92942239,151.45,151.42,8.04045321]
[1749443473816,4.92942239,151.44,151.42,8.04045321]
[1749443473989,14.64285648,151.46,151.42,8.04045321]
[1749443474189,4.93099288,151.45,151.42,8.04045321]
[1749443474401,4.93099288,151.44,151.41,6.74671641]
[1749443474602,14.64285648,151.46,151.42,8.04045321]
[1749443474807,4.93190793,151.45,151.42,8.04045321]
[1749443474990,4.93190793,151.44,151.42,8.04045321]
[1749443475291,14.64285648,151.46,151.42,8.04045321]
[1749443475493,4.93215849,151.45,151.42,8.04045321]
[1749443475793,4.93215849,151.44,151.42,8.04045321]
[1749443476003,14.64285648,151.46,151.42,8.04045321]
[1749443476203,4.93308264,151.45,151.42,8.04045321]
[1749443476390,4.93308264,151.44,151.42,8.04045321]
[1749443476589,14.64285648,151.46,151.42,8.04045321]
[1749443476790,4.93332355,151.45,151.42,8.04045321]
[1749443477096,4.93332355,151.44,151.42,8.04045321]
[1749443477296,14.64285648,151.46,151.42,8.04045321]
[1749443477511,4.9346926,151.45,151.42,8.04045321]
[1749443477704,4.9346926,151.44,151.42,8.04045321]
[1749443477906,14.64285648,151.46,151.42,8.04045321]
[1749443478251,4.93595649,151.45,151.42,8.04045321]
[1749443478409,4.93595649,151.44,151.42,8.04045321]
[1749443478714,14.64285648,151.46,151.42,8.04045321]
[1749443478897,4.93736938,151.45,151.42,8.04045321]
[1749443479094,4.93736938,151.44,151.42,8.04045321]
[1749443479296,4.93736938,151.43,151.42,8.04045321]
[1749443484820,4.93736938,151.43,151.42,14.78676218]
[1749443485023,32.16046428,151.48,151.42,14.78676218]
[1749443485332,4.94666615,151.47,151.45,8.04045321]
[1749443485628,4.94666615,151.46,151.45,8.04045321]
[1749443488294,20.15574886,151.51,151.45,14.64329243]
[1749443488295,12.76082421,151.51,151.45,14.64329243]
[1749443488500,4.94175228,151.5,151.48,8.04045321]
[1749443488709,4.94175228,151.49,151.48,8.04045321]
[1749443489311,4.94175228,151.49,151.47,8.04045321]
[1749443489625,4.94175228,151.48,151.47,8.04045321]
[1749443491199,14.64081314,151.51,151.47,8.04045321]
[1749443491420,4.93640493,151.5,151.47,8.04045321]
[1749443491611,4.93640493,151.49,151.47,8.04045321]
[1749443491815,14.64081314,151.51,151.47,8.04045321]
[1749443492027,4.93604935,151.5,151.47,8.04045321]
[1749443492321,4.93604935,151.49,151.47,8.04045321]
[1749443492522,14.64081314,151.51,151.47,8.04045321]
[1749443492716,4.9345552,151.5,151.47,8.04045321]
[1749443492920,4.9345552,151.49,151.47,8.04045321]
[1749443493247,14.64081314,151.51,151.47,8.04045321]
[1749443493424,4.93311812,151.5,151.47,8.04045321]
[1749443493611,4.93311812,151.49,151.47,8.04045321]
[1749443493813,14.64081314,151.51,151.47,8.04045321]
[1749443494030,4.93300801,151.5,151.47,8.04045321]
[1749443494222,4.93300801,151.49,151.47,8.04045321]
[1749443494524,14.64081314,151.51,151.47,8.04045321]
[1749443494702,4.93204189,151.5,151.47,8.04045321]
[1749443494903,4.93204189,151.49,151.47,8.04045321]
[1749443495109,14.64081314,151.51,151.47,8.04045321]
[1749443495309,4.93111729,151.5,151.47,8.04045321]
[1749443495612,14.64081314,151.51,151.47,8.04045321]
[1749443495927,4.93126222,151.5,151.47,8.04045321]
[1749443496103,14.64081314,151.51,151.47,8.04045321]
[1749443496298,19.57174305,151.5,151.45,8.18261478]
[1749443496505,12.97091325,151.49,151.45,8.18261478]
[1749443496712,4.93046004,151.48,151.45,8.18261478]
[1749443496909,8.04045321,151.49,151.45,8.18261478]
[1749443497115,4.93112683,151.48,151.45,8.18261478]
[1749443497314,8.04045321,151.49,151.45,8.18261478]
[1749443497516,4.93087592,151.48,151.45,8.18261478]
[1749443497830,14.64165792,151.49,151.45,8.18261478]
[1749443498638,4.93080699,151.48,151.45,8.18261478]
[1749443498807,14.64165792,151.49,151.45,8.18261478]
[1749443499009,19.57306841,151.48,151.43,0.14216157]
[1749443499232,12.97208853,151.47,151.43,8.04045321]
[1749443499435,8.04045321,151.47,151.43,8.04045321]
[1749443500936,6.60240327,151.46,151.43,8.04045321]
[1749443503337,14.64255538,151.47,151.43,8.04045321]
[1749443503637,6.60210217,151.47,151.44,8.04045321]
[1749443503845,14.6421393,151.48,151.44,8.04045321]
[1749443504015,4.93195613,151.47,151.44,8.04045321]
[1749443504516,14.6421393,151.48,151.44,8.04045321]
[1749443504937,4.93191202,151.47,151.44,8.04045321]
[1749443505849,14.6421393,151.48,151.44,8.04045321]
[1749443516637,6.60168609,151.48,151.44,8.04045321]
[1749443516836,55.68169712,151.49,151.44,8.04045321]
[1749443517852,55.68169712,151.49,151.45,8.04045321]
[1749443518451,4.93403703,151.48,151.45,8.04045321]
[1749443518652,55.68169712,151.49,151.45,8.04045321]
[1749443518865,11.53559769,151.48,151.45,8.04045321]
[1749443519163,6.6015903,151.48,151.45,8.04045321]
[1749443519337,4.93447614,151.47,151.45,8.04045321]
[1749443519632,6.6015903,151.48,151.45,8.04045321]
[1749443519830,4.93455108,151.47,151.45,8.04045321]
[1749443520053,6.6015903,151.48,151.45,8.04045321]
[1749443520260,4.93455108,151.47,151.44,8.04045321]
[1749443520461,6.60200629,151.47,151.44,8.04045321]
[1749443520768,4.93513148,151.46,151.44,8.04045321]
[1749443520932,14.6424595,151.47,151.42,8.18261478]
[1749443521138,4.93523122,151.46,151.42,8.18261478]
[1749443521351,14.6424595,151.47,151.42,8.18261478]
[1749443521530,4.93549191,151.46,151.42,8.18261478]
[1749443521734,8.04045321,151.46,151.42,8.18261478]
[1749443521938,4.93620675,151.45,151.42,8.18261478]
[1749443522145,8.04045321,151.46,151.42,8.18261478]
[1749443522355,4.93672401,151.45,151.42,8.18261478]
[1749443522551,8.04045321,151.46,151.42,8.18261478]
[1749443522755,4.93663564,151.45,151.42,8.18261478]
[1749443522961,47.21025843,151.49,151.44,8.04045321]
[1749443523149,4.93569783,151.48,151.45,8.04045321]
[1749443523469,4.93602622,151.47,151.45,8.04045321]
[1749443523668,49.08045321,151.49,151.45,8.04045321]
[1749443523868,4.93622406,151.48,151.45,8.04045321]
[1749443524082,47.64115966,151.49,151.45,8.04045321]
[1749443524368,4.93659832,151.48,151.45,8.04045321]
[1749443524573,6.60115966,151.49,151.45,8.04045321]
[1749443524864,4.93674323,151.48,151.45,8.04045321]
[1749443525063,6.60115966,151.49,151.45,8.04045321]
[1749443525265,4.93735018,151.48,151.45,8.04045321]
[1749443525466,6.60115966,151.49,151.45,8.04045321]
[1749443525663,4.93735018,151.48,151.45,8.04045321]
[1749443525834,6.60115966,151.49,151.45,8.04045321]
[1749443526041,4.93759837,151.48,151.45,8.04045321]
[1749443526241,4.93759837,151.47,151.45,8.04045321]
[1749443526441,6.60115966,151.49,151.45,8.04045321]
[1749443526661,4.93826422,151.48,151.45,8.04045321]
[1749443526847,4.93826422,151.47,151.45,8.04045321]
[1749443527049,14.64161287,151.49,151.45,8.04045321]
[1749443527250,4.93945254,151.48,151.45,8.04045321]
[1749443527453,4.93945254,151.47,151.45,8.04045321]
[1749443527749,4.93945254,151.46,151.44,8.04045321]
[1749443527959,4.94003808,151.45,151.43,8.04045321]
[1749443528262,8.04045321,151.47,151.43,8.04045321]
[1749443528444,4.94125004,151.46,151.43,8.04045321]
[1749443528643,4.94125004,151.45,151.43,8.04045321]
[1749443528963,4.94116462,151.44,151.43,8.04045321]
[1749443529163,4.94116462,151.44,151.42,8.04045321]
[1749443529363,6.60254438,151.46,151.42,8.04045321]
[1749443529572,4.94229562,151.45,151.42,8.04045321]
[1749443529883,4.94229562,151.44,151.42,8.04045321]
[1749443530088,6.60254438,151.46,151.42,8.04045321]
[1749443530374,4.94186313,151.45,151.42,8.04045321]
[1749443530669,4.94186313,151.44,151.42,8.04045321]
[1749443530870,6.60254438,151.46,151.42,8.04045321]
[1749443531064,4.94149439,151.45,151.42,8.04045321]
[1749443531371,6.60213604,151.47,151.44,8.04045321]
[1749443531550,4.94106441,151.46,151.44,8.04045321]
[1749443531747,4.94106441,151.45,151.44,8.04045321]
[1749443533973,4.94106441,151.45,151.43,8.04045321]
[1749443534269,6.6024326,151.46,151.43,8.04045321]
[1749443534446,4.94117032,151.45,151.43,8.04045321]
[1749443534750,6.6024326,151.46,151.43,8.04045321]
[1749443534948,4.94098913,151.45,151.43,8.04045321]
[1749443535177,6.6024326,151.46,151.43,8.04045321]
[1749443535361,4.94109733,151.45,151.43,8.04045321]
[1749443535668,12.98176697,151.44,151.39,8.04045321]
[1749443535848,12.98176697,151.43,151.38,8.04045321]
[1749443536053,4.94131376,151.42,151.38,8.04045321]
[1749443536253,8.04045321,151.43,151.39,8.04045321]
[1749443536475,4.94206561,151.42,151.39,8.04045321]
[1749443536652,14.64441248,151.43,151.39,8.04045321]
[1749443536852,4.9400056,151.42,151.39,8.04045321]
[1749443537066,14.64441248,151.43,151.39,8.04045321]
[1749443537260,4.94031467,151.42,151.39,12.56683751]
[1749443537463,19.17079678,151.43,151.39,12.56683751]
[1749443537673,4.94026503,151.42,151.39,12.56683751]
[1749443537854,4.94026503,151.41,151.39,12.56683751]
[1749443538063,6.60415315,151.42,151.39,12.56683751]
[1749443538250,4.93909938,151.41,151.39,12.56683751]
[1749443538455,6.60415315,151.42,151.39,12.56683751]
[1749443539678,6.60415315,151.42,151.38,0.14216157]
[1749443539878,12.56683751,151.42,151.38,12.70899908]
[1749443541476,19.17116304,151.42,151.38,12.70899908]
[1749443544581,17.50073191,151.41,151.36,36.80216157]
[1749443544785,12.56683751,151.4,151.36,23.36899908]
[1749443544989,17.50098159,151.41,151.37,12.56683751]
[1749443545172,12.56683751,151.41,151.37,12.56683751]
[1749443546170,19.17148715,151.41,151.37,12.56683751]
[1749443546768,4.9317875,151.4,151.37,12.56683751]
[1749443546957,4.9317875,151.4,151.36,12.70899908]
[1749443547158,17.49859624,151.39,151.35,0.14216157]
[1749443547360,12.56683751,151.39,151.35,0.14216157]
[1749443547886,17.49685084,151.39,151.35,0.14216157]
[1749443548068,12.56683751,151.39,151.35,0.14216157]
[1749443548268,24.10243069,151.39,151.35,0.14216157]
[1749443548481,19.17241736,151.39,151.34,12.56683751]
[1749443548780,12.56683751,151.38,151.34,12.56683751]
[1749443549368,12.56683751,151.38,151.33,40.11273751]
[1749443549553,6.60557985,151.39,151.33,12.56683751]
[1749443549554,12.56683751,151.37,151.33,12.56683751]
[1749443550266,4.93001333,151.4,151.36,12.56683751]
[1749443550587,17.49685084,151.42,151.37,12.56683751]
[1749443550785,4.93001333,151.41,151.37,12.56683751]
[1749443550986,17.49685084,151.41,151.37,12.56683751]
[1749443551280,12.56683751,151.39,151.35,12.56683751]
[1749443551483,12.56683751,151.38,151.34,12.56683751]
[1749443551861,12.56683751,151.39,151.34,12.56683751]
[1749443552178,19.17335264,151.37,151.33,12.70899908]
[1749443552383,19.17335264,151.37,151.33,0.14216157]
[1749443552686,19.17335264,151.37,151.33,12.70899908]
[1749443553179,6.60651513,151.37,151.33,12.70899908]
[1749443553964,19.17335264,151.37,151.32,12.56683751]
[1749443554184,12.56683751,151.36,151.32,12.56683751]
[1749443554382,19.17370451,151.36,151.32,12.56683751]
[1749443554890,19.17370451,151.36,151.31,6.60883504]
[1749443555087,12.56683751,151.35,151.3,1.86026157]
[1749443555268,12.56683751,151.35,151.31,12.56683751]
[1749443555970,12.56683751,151.34,151.3,12.76683751]
[1749443556170,12.56683751,151.34,151.3,0.2]
[1749443556380,12.56683751,151.34,151.3,19.37609561]
[1749443557191,12.56683751,151.34,151.3,6.8092581]
[1749443557383,12.56683751,151.34,151.3,12.76683751]
[1749443557580,12.56683751,151.34,151.3,19.37597693]
[1749443559377,12.56683751,151.34,151.3,12.76683751]
[1749443562195,19.17449034,151.34,151.3,12.76683751]
[1749443564172,25.25641418,151.36,151.3,19.37619544]
[1749443564471,12.56683751,151.34,151.3,19.37619544]
[1749443564667,8.11162461,151.38,151.33,12.56683751]
[1749443564886,8.11162461,151.38,151.35,12.56683751]
[1749443565092,18.64964886,151.36,151.3,0.2]
[1749443565277,12.56683751,151.35,151.31,12.56683751]
[1749443565485,12.56683751,151.36,151.32,12.56683751]
[1749443565874,12.56683751,151.36,151.31,12.56683751]
[1749443566796,12.56683751,151.34,151.3,12.76683751]
[1749443567399,31.21648637,151.35,151.3,12.76683751]
[1749443567884,37.82410867,151.35,151.3,12.76683751]
[1749443571301,12.56683751,151.34,151.3,12.76683751]
[1749443571474,37.82410867,151.35,151.3,12.76683751]
[1749443572804,12.56683751,151.34,151.3,12.76683751]
[1749443574005,25.25727116,151.35,151.3,12.76683751]
[1749443574006,37.82410867,151.35,151.3,12.76683751]
[1749443575087,12.56683751,151.34,151.3,12.76683751]
[1749443575507,37.82410867,151.35,151.3,12.76683751]
[1749443575931,12.56683751,151.34,151.3,12.76683751]
[1749443576688,6.60807506,151.33,151.3,12.76683751]
[1749443576898,12.56683751,151.31,151.3,0.2]
[1749443578692,19.17578602,151.31,151.3,0.2]
[1749443579387,6.60864441,151.32,151.3,0.2]
[1749443579807,19.17548192,151.32,151.3,0.2]
[1749443580203,12.56683751,151.31,151.3,0.2]
[1749443580717,19.17578602,151.31,151.3,0.2]
[1749443584311,37.82543488,151.31,151.3,0.2]
[1749443586403,42.74804161,151.31,151.3,0.2]
[1749443587490,43.03236475,151.31,151.3,0.2]
[1749443589397,49.20262318,151.31,151.3,0.2]
[1749443589619,26.0,151.28,151.21,1.5331]
[1749443589813,12.56683751,151.25,151.21,1.5331]
[1749443590017,12.56683751,151.25,151.21,8.14636201]
[1749443590404,19.17844485,151.25,151.21,1.5331]
[1749443591028,12.56683751,151.24,151.21,1.5331]
[1749443591216,12.56683751,151.25,151.21,8.14640696]
[1749443591732,12.56683751,151.25,151.21,1.5331]
[1749443592227,12.56683751,151.24,151.21,1.5331]
[1749443593206,17.48944424,151.27,151.23,12.56683751]
[1749443593505,19.1775548,151.27,151.23,12.56683751]
[1749443596232,12.56683751,151.27,151.23,12.56683751]
[1749443597626,19.17759894,151.27,151.23,12.56683751]
[1749443599625,12.56683751,151.27,151.23,19.17928]
[1749443599830,19.17723622,151.28,151.24,12.56683751]
[1749443602332,12.56683751,151.28,151.24,12.56683751]
[1749443602544,29.75697916,151.29,151.25,12.56683751]
[1749443607039,10.58,151.29,151.26,12.56683751]
[1749443607253,24.0911567,151.32,151.27,12.56683751]
[1749443607427,64.7311567,151.32,151.27,12.56683751]
[1749443607625,4.91580743,151.31,151.27,12.56683751]
[1749443608027,24.0911567,151.32,151.27,12.56683751]
[1749443608223,19.17534927,151.32,151.27,12.56683751]
[1749443608437,24.09259141,151.32,151.27,12.56683751]
[1749443608827,19.17534927,151.32,151.27,12.56683751]
[1749443609035,19.17534927,151.32,151.28,12.56683751]
[1749443609222,24.09273222,151.32,151.28,12.56683751]
[1749443610925,24.09576328,151.32,151.28,12.56683751]
[1749443611750,24.09576328,151.32,151.27,12.56683751]
[1749443614152,24.09576328,151.32,151.28,12.56683751]